bitfinex-derivatives/quotes_BTCF0:USTF0_20260119
["timestamp","ask_amount","ask_price","bid_price","bid_amount"]
[1768782815175,0.02345144,92676.0,92641.0,0.09543583]
[1768782815363,0.02345144,92675.0,92650.0,0.00016193]
[1768782815659,0.14158558,92674.0,92641.0,0.09543583]
[1768782815861,0.14158558,92673.0,92641.0,0.09543583]
[1768782816059,0.11813414,92669.0,92630.0,0.18295583]
[1768782816267,0.14158558,92668.0,92631.0,0.09543583]
[1768782816569,0.13210984,92665.0,92631.0,0.09543583]
[1768782816768,0.13210984,92662.0,92631.0,0.09543583]
[1768782817063,0.00237354,92689.0,92654.0,0.09543583]
[1768782817272,0.14157791,92688.0,92654.0,0.09543583]
[1768782817458,0.02344377,92687.0,92661.0,0.09543583]
[1768782817655,0.02344377,92686.0,92661.0,0.09543583]
[1768782817866,0.02344377,92685.0,92661.0,0.09543583]
[1768782818066,0.02344377,92684.0,92661.0,0.09543583]
[1768782818368,0.02344377,92683.0,92665.0,0.09382776]
[1768782818564,0.02344377,92682.0,92665.0,0.09382776]
[1768782818765,0.02321369,92681.0,92665.0,0.09382776]
[1768782818970,0.00237354,92689.0,92665.0,0.09382776]
[1768782819173,0.02322073,92688.0,92665.0,0.09382776]
[1768782819364,0.02322073,92687.0,92665.0,0.09382776]
[1768782819670,0.03322073,92687.0,92665.0,0.09382776]
[1768782819872,0.02322073,92686.0,92665.0,0.09382776]
[1768782820071,0.03322073,92686.0,92665.0,0.09382776]
[1768782820373,0.02322073,92685.0,92665.0,0.09382776]
[1768782820763,0.02322073,92684.0,92665.0,0.09382776]
[1768782820966,0.02322073,92683.0,92665.0,0.09382776]
[1768782821270,0.03322073,92683.0,92665.0,0.09382776]
[1768782821470,0.02322073,92682.0,92664.0,0.00016193]
[1768782821671,0.03322073,92682.0,92664.0,0.00016193]
[1768782821868,0.02322073,92681.0,92664.0,0.00016193]
[1768782822168,5.4e-07,92689.0,92673.0,0.09382776]
[1768782822365,0.01000054,92689.0,92680.0,0.09382776]
[1768782822566,5.4e-07,92689.0,92680.0,0.09382776]
[1768782823272,0.00237303,92709.0,92682.0,0.09382776]
[1768782823474,0.00237303,92709.0,92681.0,0.010793]
[1768782823475,0.01237303,92709.0,92690.0,0.09382776]
[1768782823671,0.01237303,92709.0,92690.0,0.0355161]
[1768782823875,0.01237303,92709.0,92686.0,0.00016185]
[1768782824273,0.01237303,92709.0,92690.0,0.15592197]
[1768782824979,0.01237303,92709.0,92686.0,0.00016185]
[1768782825171,0.00037303,92709.0,92690.0,0.15592197]
[1768782825372,0.01,92709.0,92690.0,0.15592197]
[1768782825576,0.01,92709.0,92686.0,0.09398961]
[1768782825777,0.01,92709.0,92686.0,0.00016185]
[1768782826167,0.11813436,92709.0,92686.0,0.00016185]
[1768782826567,0.09473098,92708.0,92686.0,0.00016185]
[1768782826772,0.10813436,92707.0,92686.0,0.00016185]
[1768782826967,0.11813436,92707.0,92686.0,0.00016185]
[1768782827381,0.11813436,92707.0,92676.0,0.09382776]
[1768782827382,0.20286534,92704.0,92676.0,0.09382776]
[1768782827572,0.10813436,92701.0,92666.0,0.09382776]
[1768782827771,0.10813436,92701.0,92666.0,0.09145205]
[1768782827772,0.10813436,92698.0,92666.0,0.09145205]
[1768782827977,0.15813436,92698.0,92666.0,0.09145205]
[1768782828288,0.20286534,92693.0,92660.0,0.15592197]
[1768782828473,0.25286534,92693.0,92660.0,0.15592197]
[1768782828671,0.00016155,92686.0,92667.0,0.00016185]
[1768782828873,0.05016155,92686.0,92667.0,0.00016185]
[1768782829182,0.05016155,92686.0,92650.0,0.16671897]
[1768782829375,0.05016155,92686.0,92650.0,0.24336197]
[1768782829576,0.05016155,92686.0,92650.0,0.25762353]
[1768782829772,0.05016155,92686.0,92651.0,0.09382776]
[1768782829979,0.10813436,92685.0,92651.0,0.09382776]
[1768782830171,0.00016155,92686.0,92661.0,0.10462276]
[1768782830367,0.00016155,92686.0,92670.0,0.15592197]
[1768782830572,0.00016155,92686.0,92676.0,0.15592197]
[1768782830871,0.00016155,92686.0,92670.0,0.15592197]
[1768782831272,0.00016155,92686.0,92671.0,0.09382776]
[1768782831472,0.00016155,92686.0,92661.0,0.09382776]
[1768782831676,0.00016155,92686.0,92670.0,0.15592197]
[1768782831883,0.16793834,92708.0,92677.0,0.09382776]
[1768782832080,0.16793834,92708.0,92665.0,0.10885105]
[1768782832081,0.05,92708.0,92687.0,0.15592197]
[1768782832284,0.08744,92720.0,92688.0,0.10461976]
[1768782832489,0.19808129,92720.0,92691.0,0.09356418]
[1768782832687,0.05,92720.0,92700.0,0.24948615]
[1768782832983,0.05,92720.0,92670.0,0.25415597]
[1768782832984,0.20680811,92709.0,92670.0,0.09356418]
[1768782833178,0.11450741,92698.0,92670.0,0.09356418]
[1768782833375,0.16450741,92698.0,92680.0,0.00016185]
[1768782833579,0.16450741,92698.0,92670.0,0.09356418]
[1768782833888,0.11450741,92684.0,92650.0,0.09356418]
[1768782834182,0.13940015,92683.0,92653.0,0.09356418]
[1768782834384,0.02489274,92682.0,92653.0,0.09356418]
[1768782834579,0.11450741,92679.0,92643.0,0.09356418]
[1768782834779,0.16450741,92679.0,92658.0,0.00016185]
[1768782835286,0.20680811,92673.0,92644.0,0.08744]
[1768782835486,0.25680811,92673.0,92644.0,0.08744]
[1768782835686,0.20680811,92673.0,92645.0,0.09356418]
[1768782835985,0.00016185,92678.0,92645.0,0.09356418]
[1768782836180,0.02493041,92677.0,92645.0,0.09356418]
[1768782836384,0.02493041,92676.0,92651.0,0.10436018]
[1768782836574,0.02493041,92675.0,92652.0,0.09372603]
[1768782836770,0.00016185,92678.0,92652.0,0.09372603]
[1768782836771,0.02493041,92674.0,92654.0,0.010796]
[1768782836977,0.02493041,92673.0,92654.0,0.010796]
[1768782837172,0.00016185,92678.0,92654.0,0.09356418]
[1768782837472,0.02497283,92677.0,92661.0,0.09356418]
[1768782837674,0.0923007,92705.0,92668.0,0.09356418]
[1768782837872,0.19690828,92699.0,92672.0,0.09356418]
[1768782838285,0.10946828,92699.0,92674.0,0.09356418]
[1768782838482,0.05,92699.0,92676.0,0.09356418]
[1768782838784,0.11450741,92707.0,92681.0,0.010793]
[1768782838982,0.0679383,92707.0,92682.0,0.09356418]
[1768782839286,0.00016185,92703.0,92690.0,0.15592197]
[1768782839581,0.00016185,92703.0,92678.0,0.00016185]
[1768782839582,0.15592197,92700.0,92678.0,0.00016185]
[1768782839780,0.11450741,92699.0,92678.0,0.00016185]
[1768782839987,0.16450741,92699.0,92678.0,0.00016185]
[1768782840283,0.20680811,92695.0,92663.0,0.09356418]
[1768782840482,0.20680811,92692.0,92663.0,0.09356418]
[1768782840789,0.20680811,92678.0,92641.0,0.09356418]
[1768782840994,0.20680811,92674.0,92641.0,0.09356418]
[1768782841283,0.20680811,92668.0,92640.0,0.08744]
[1768782841480,0.26680811,92668.0,92631.0,0.09356418]
[1768782841789,0.00016185,92663.0,92645.0,0.00016185]
[1768782842083,0.11450741,92662.0,92631.0,0.09356418]
[1768782842383,0.06,92662.0,92631.0,0.09356418]
[1768782842686,0.01,92662.0,92641.0,0.09356418]
[1768782842891,0.00016185,92663.0,92642.0,0.010797]
[1768782843080,0.05016185,92663.0,92643.0,0.09356418]
[1768782843281,0.05016185,92663.0,92629.0,0.10436318]
[1768782843484,0.05016185,92663.0,92644.0,0.00016185]
[1768782844288,0.20680811,92658.0,92627.0,0.09356418]
[1768782844482,0.25680811,92658.0,92627.0,0.09356418]
[1768782844788,0.20680811,92657.0,92627.0,0.09356418]
[1768782845092,0.0923007,92654.0,92626.0,0.08757607]
[1768782845281,0.20680811,92649.0,92626.0,0.00013607]
[1768782845475,0.20680811,92647.0,92626.0,0.00013607]
[1768782845675,0.27042938,92640.0,92607.0,0.09356418]
[1768782845879,0.11450741,92639.0,92607.0,0.09356418]
[1768782846091,0.11450741,92639.0,92602.0,0.08744]
[1768782846092,0.01,92639.0,92621.0,0.09356418]
[1768782846385,0.01,92639.0,92614.0,0.11535191]
[1768782846386,0.05909603,92657.0,92626.0,0.09356418]
[1768782846687,0.00013052,92656.0,92626.0,0.09356418]
[1768782846883,0.0923007,92665.0,92610.0,0.15592197]
[1768782846884,0.11450741,92691.0,92657.0,0.09356418]
[1768782847083,0.20680811,92690.0,92657.0,0.09356418]
[1768782847385,0.07999977,92675.0,92665.0,0.00010787]
[1768782847888,0.07999977,92666.0,92665.0,0.00010787]
[1768782848090,0.07999977,92668.0,92644.0,0.09356418]
[1768782848291,0.07999977,92679.0,92644.0,0.09356418]
[1768782848588,0.07999977,92678.0,92644.0,0.09356418]
[1768782848786,0.07999977,92677.0,92644.0,0.09356418]
[1768782849090,0.07999977,92677.0,92643.0,0.098237]
[1768782849091,0.07999977,92677.0,92646.0,0.09356418]
[1768782849291,0.00016185,92670.0,92646.0,0.09356418]
[1768782849676,0.08016162,92670.0,92646.0,0.09356418]
[1768782850590,0.00016185,92670.0,92646.0,0.09356418]
[1768782850792,0.00016185,92670.0,92643.0,0.08744]
[1768782850793,0.07999977,92662.0,92643.0,0.08744]
[1768782851083,0.07999977,92668.0,92640.0,0.09356418]
[1768782851284,0.02,92668.0,92648.0,0.10436118]
[1768782851588,0.07999977,92664.0,92648.0,0.10436118]
[1768782851792,0.09999977,92664.0,92648.0,0.09356418]
[1768782851988,0.02,92664.0,92638.0,0.09356418]
[1768782852181,0.07999977,92662.0,92638.0,0.09356418]
[1768782852381,0.07999977,92658.0,92638.0,0.09356418]
[1768782852585,0.07999977,92658.0,92630.0,0.08744]
[1768782852586,0.03,92658.0,92642.0,0.09356418]
[1768782853491,0.00016185,92667.0,92642.0,0.09356418]
[1768782853687,0.07999977,92664.0,92642.0,0.09356418]
[1768782853887,0.09999977,92664.0,92642.0,0.10436118]
[1768782854193,0.07999977,92660.0,92642.0,0.09356418]
[1768782854392,0.12999977,92660.0,92642.0,0.09356418]
[1768782854593,0.07999977,92658.0,92642.0,0.09356418]
[1768782854895,0.07999977,92658.0,92644.0,0.09356418]
[1768782855087,0.02,92658.0,92644.0,0.09356418]
[1768782855296,0.02,92658.0,92632.0,0.09356418]
[1768782855297,0.07999977,92649.0,92632.0,0.09356418]
[1768782855592,0.07999977,92656.0,92633.0,0.010799]
[1768782855787,0.02,92656.0,92632.0,0.09356418]
[1768782855992,0.07999977,92654.0,92632.0,0.10436318]
[1768782856191,0.07999977,92652.0,92632.0,0.09356418]
[1768782856387,0.07999977,92643.0,92630.0,0.08744]
[1768782856587,0.07999977,92638.0,92625.0,0.09356418]
[1768782856788,0.07999977,92641.0,92625.0,0.09356418]
[1768782856982,0.02016194,92641.0,92625.0,0.09356418]
[1768782857190,0.07999977,92640.0,92625.0,0.09356418]
[1768782857393,0.07999977,92639.0,92625.0,0.09356418]
[1768782857890,0.07999977,92638.0,92625.0,0.09356418]
[1768782858191,0.07999977,92639.0,92615.0,0.08744]
[1768782858394,0.07999977,92639.0,92613.0,0.09356418]
[1768782858395,0.07999977,92628.0,92613.0,0.09356418]
[1768782858894,0.07999977,92616.0,92594.0,0.010803]
[1768782859093,0.06,92616.0,92594.0,0.02473268]
[1768782859294,0.20680811,92625.0,92594.0,0.02473268]
[1768782859493,0.00016194,92614.0,92594.0,0.01392968]
[1768782859794,0.00016194,92614.0,92593.0,0.09356418]
[1768782859795,0.06016194,92614.0,92593.0,0.09356418]
[1768782859990,0.07999977,92604.0,92589.0,0.01359995]
[1768782860187,0.00016194,92614.0,92587.0,9.712e-05]
[1768782860389,0.07999977,92602.0,92587.0,9.712e-05]
[1768782860585,0.07999977,92596.0,92588.0,0.0581725]
[1768782860791,0.07999977,92600.0,92588.0,0.0581725]
[1768782861094,0.07999977,92600.0,92587.0,9.712e-05]
[1768782861095,0.00016194,92614.0,92592.0,0.10436718]
[1768782862398,0.05016194,92614.0,92600.0,0.09280138]
[1768782862593,0.07,92624.0,92600.0,0.09280138]
[1768782862794,0.11450741,92634.0,92603.0,0.09280138]
[1768782862999,0.010799,92632.0,92604.0,0.10360338]
[1768782863195,0.20909638,92628.0,92595.0,0.0581725]
[1768782863497,0.20909638,92628.0,92594.0,0.10360438]
[1768782863498,0.010801,92613.0,92594.0,0.09280138]
[1768782863699,0.010802,92604.0,92588.0,0.0581725]
[1768782863899,0.02,92604.0,92587.0,9.712e-05]
[1768782864298,0.010802,92603.0,92587.0,9.712e-05]
[1768782864496,0.010802,92600.0,92587.0,9.712e-05]
[1768782864698,0.05990685,92613.0,92587.0,0.0928985]
[1768782864904,0.08764194,92621.0,92587.0,0.0928985]
[1768782864905,0.09844194,92621.0,92595.0,0.010803]
[1768782865094,0.11764194,92621.0,92598.0,0.010803]
[1768782865293,0.08764194,92621.0,92601.0,0.09280138]
[1768782865496,0.08764194,92621.0,92619.0,0.0108]
[1768782865497,9.4e-07,92621.0,92619.0,0.0108]
[1768782865792,0.11843635,92643.0,92615.0,0.09280138]
[1768782865998,0.010799,92633.0,92615.0,0.09280138]
[1768782866198,0.02,92633.0,92615.0,0.09280138]
[1768782866504,0.02,92633.0,92604.0,0.10360338]
[1768782866702,0.010799,92626.0,92604.0,0.09280138]
[1768782866893,0.010799,92626.0,92609.0,0.00016194]
[1768782867298,0.05,92626.0,92595.0,0.08748]
[1768782867497,0.11859829,92628.0,92595.0,0.18028138]
[1768782867808,0.00016194,92628.0,92599.0,0.10360338]
[1768782868198,0.00016194,92628.0,92595.0,0.08748]
[1768782868199,0.00016194,92628.0,92605.0,0.09280138]
[1768782868399,0.010799,92626.0,92605.0,0.09280138]
[1768782868808,0.0108,92623.0,92605.0,0.09280138]
[1768782869210,0.00016194,92628.0,92605.0,0.10360338]
[1768782869398,0.00016194,92628.0,92605.0,0.09280138]
[1768782869599,0.0108,92625.0,92605.0,0.09280138]
[1768782869905,0.11859829,92628.0,92597.0,0.09280138]
[1768782870107,0.11859829,92628.0,92599.0,0.09280138]
[1768782870108,0.0108,92623.0,92599.0,0.09280138]
[1768782870510,0.00016194,92628.0,92612.0,0.09280138]
[1768782870807,0.010798,92639.0,92612.0,0.09280138]
[1768782871008,0.20591635,92661.0,92621.0,0.09280138]
[1768782871196,0.06,92661.0,92633.0,0.09280138]
[1768782871401,0.010796,92653.0,92633.0,0.09280138]
[1768782871600,0.010796,92658.0,92633.0,0.09280138]
[1768782871805,0.00016194,92652.0,92634.0,0.09296332]
[1768782872008,0.010795,92667.0,92640.0,0.09280138]
[1768782872309,0.02,92667.0,92650.0,0.09280138]
[1768782872510,0.02,92667.0,92639.0,0.11850864]
[1768782872511,0.010794,92675.0,92654.0,0.09280138]
[1768782872705,0.07487749,92705.0,92634.0,0.00016194]
[1768782872706,0.08748,92692.0,92659.0,0.09280138]
[1768782872907,0.010793,92684.0,92659.0,0.09280138]
[1768782873102,0.040793,92684.0,92659.0,0.09280138]
[1768782873301,0.01095494,92681.0,92659.0,0.09280138]
[1768782873497,0.04095494,92681.0,92659.0,0.09280138]
[1768782873702,0.010793,92678.0,92659.0,0.09280138]
[1768782873908,0.03,92678.0,92659.0,0.09280138]
[1768782874211,0.00016194,92681.0,92659.0,0.21131002]
[1768782874411,0.02,92681.0,92660.0,0.09280138]
[1768782874603,0.010792,92691.0,92665.0,0.09280138]
[1768782874804,0.02145535,92690.0,92670.0,0.09280138]
[1768782875006,0.02145535,92690.0,92650.0,0.01399301]
[1768782875007,0.09066003,92686.0,92650.0,0.01399301]
[1768782875198,0.010795,92666.0,92644.0,0.11850864]
[1768782875411,0.00016185,92664.0,92641.0,0.08748]
[1768782875707,0.00016185,92664.0,92614.0,0.11850864]
[1768782875708,0.06016185,92664.0,92614.0,0.11850864]
[1768782876017,0.010796,92656.0,92629.0,0.010799]
[1768782876198,0.00016185,92664.0,92616.0,0.11850864]
[1768782876508,0.02,92664.0,92630.0,0.00016185]
[1768782876713,0.00016185,92649.0,92631.0,0.010799]
[1768782876914,0.00016185,92649.0,92632.0,0.09280138]
[1768782877211,0.00016185,92649.0,92634.0,0.09280138]
[1768782880804,0.010797,92645.0,92634.0,0.09280138]
[1768782881005,0.00016185,92649.0,92634.0,0.09280138]
[1768782881223,0.09049012,92704.0,92662.0,0.09145142]
[1768782881511,0.010791,92700.0,92672.0,0.09145142]
[1768782881704,0.02148918,92699.0,92672.0,0.09145142]
[1768782881910,0.010791,92696.0,92672.0,0.09145142]
[1768782882114,0.09049012,92692.0,92662.0,0.09145142]
[1768782882308,0.09049012,92692.0,92654.0,0.010796]
[1768782882309,0.09049012,92689.0,92654.0,0.010796]
[1768782882615,0.09049012,92684.0,92644.0,0.08748]
[1768782882919,0.09049012,92676.0,92641.0,0.17893142]
[1768782883119,0.14049012,92676.0,92642.0,0.010797]
[1768782883416,0.00016185,92668.0,92646.0,0.010797]
[1768782883614,0.05016185,92668.0,92643.0,0.09145142]
[1768782884012,0.05016185,92668.0,92646.0,0.00016185]
[1768782884211,0.010796,92652.0,92646.0,8.5e-07]
[1768782884411,0.060796,92652.0,92646.0,8.5e-07]
[1768782884617,0.010797,92651.0,92631.0,0.09145142]
[1768782884822,0.060797,92651.0,92631.0,0.09145142]
[1768782885010,0.060797,92651.0,92605.0,0.0581725]
[1768782885011,0.14049012,92651.0,92621.0,0.09145142]
[1768782885219,0.010798,92640.0,92611.0,0.09145142]
[1768782885512,0.010798,92638.0,92611.0,0.09145142]
[1768782885712,0.00016185,92637.0,92619.0,0.00016185]
[1768782885906,0.05016185,92637.0,92619.0,0.00016185]
[1768782887320,0.05016185,92637.0,92605.0,0.01406917]
[1768782887507,0.05016185,92637.0,92602.0,0.09145142]
[1768782887712,0.0108,92622.0,92595.0,0.010803]
[1768782888021,0.0608,92622.0,92598.0,0.010803]
[1768782888209,0.0608,92622.0,92594.0,0.09145142]
[1768782888405,0.05,92622.0,92594.0,0.09145142]
[1768782888610,0.00016194,92619.0,92601.0,0.09161336]
[1768782889115,0.010799,92632.0,92604.0,0.010802]
[1768782889320,0.010799,92629.0,92606.0,0.10225342]
[1768782889620,0.010799,92626.0,92606.0,0.09145142]
[1768782889925,0.010799,92629.0,92606.0,0.10225342]
[1768782890123,0.04,92629.0,92606.0,0.10225342]
[1768782890420,0.00016194,92627.0,92606.0,0.10225342]
[1768782890724,0.00016194,92627.0,92610.0,0.09145142]
[1768782891523,0.03016194,92627.0,92610.0,0.09145142]
[1768782891714,0.03016194,92627.0,92601.0,0.00016194]
[1768782891715,0.04016194,92627.0,92601.0,0.00016194]
[1768782891913,0.25056046,92627.0,92601.0,0.00016194]
[1768782892617,0.0108,92624.0,92601.0,0.09069767]
[1768782892817,0.0408,92624.0,92601.0,0.09069767]
[1768782893124,0.04,92624.0,92605.0,0.09053573]
[1768782893326,0.0108,92623.0,92605.0,0.09053573]
[1768782893527,0.04,92623.0,92605.0,0.09053573]
[1768782894915,0.04,92623.0,92601.0,0.00016194]
[1768782894916,0.010801,92614.0,92601.0,0.00016194]
[1768782895212,0.010801,92613.0,92601.0,0.00016194]
[1768782895412,0.070801,92613.0,92601.0,0.00016194]
[1768782895616,0.010802,92607.0,92601.0,9.4e-07]
[1768782895825,0.010802,92607.0,92577.0,0.09053573]
[1768782895826,0.010803,92596.0,92577.0,0.09053573]
[1768782896018,0.05,92596.0,92577.0,0.09053573]
[1768782896324,0.010802,92602.0,92570.0,0.09053573]
[1768782896526,0.05,92602.0,92577.0,0.010805]
[1768782896926,0.00016194,92599.0,92577.0,0.010805]
[1768782897123,0.05016194,92599.0,92577.0,0.010805]
[1768782897322,0.06096494,92599.0,92575.0,0.010805]
[1768782897628,0.05016194,92599.0,92579.0,0.00016194]
[1768782898122,0.11425652,92580.0,92553.0,0.010808]
[1768782898324,0.11425652,92580.0,92549.0,0.08748]
[1768782898325,9.934e-05,92579.0,92556.0,0.010807]
[1768782898522,9.934e-05,92579.0,92560.0,0.10134273]
[1768782898923,0.010803,92593.0,92570.0,0.09053573]
[1768782899122,0.05,92593.0,92575.0,0.09053573]
[1768782899422,0.05,92593.0,92577.0,0.09053573]
[1768782899423,0.00016203,92591.0,92577.0,0.09053573]
[1768782899617,0.07,92601.0,92577.0,0.09053573]
[1768782899821,0.08748,92615.0,92579.0,0.09053573]
[1768782900015,0.16425652,92611.0,92579.0,0.09053573]
[1768782900226,0.10951885,92611.0,92583.0,0.09053573]
[1768782900430,0.10951885,92611.0,92573.0,0.09053573]
[1768782900431,0.010804,92588.0,92573.0,0.09053573]
[1768782900724,0.05,92588.0,92566.0,0.09053573]
[1768782900931,0.010805,92576.0,92556.0,0.09053573]
[1768782901222,0.010805,92578.0,92552.0,0.010808]
[1768782901525,0.06067428,92590.0,92568.0,0.09053573]
[1768782901819,0.06067428,92590.0,92548.0,0.08752]
[1768782901820,0.21371179,92577.0,92541.0,0.09053573]
[1768782902028,0.21371179,92577.0,92524.0,0.00237776]
[1768782902029,0.08752,92577.0,92545.0,0.09053573]
[1768782902215,0.00016203,92570.0,92558.0,0.09053573]
[1768782902413,0.040806,92570.0,92545.0,0.09053573]
[1768782902616,0.03,92570.0,92545.0,0.09053573]
[1768782902812,0.010807,92565.0,92544.0,0.00237725]
[1768782903015,0.010807,92564.0,92544.0,0.00237725]
[1768782903212,0.010808,92550.0,92544.0,2.5e-07]
[1768782903415,0.14945527,92564.0,92536.0,0.00011903]
[1768782903416,0.010808,92554.0,92536.0,0.00011903]
[1768782903624,0.03,92554.0,92536.0,0.00011903]
[1768782903826,0.12945527,92554.0,92525.0,0.09053573]
[1768782904125,0.09945527,92552.0,92524.0,0.00237776]
[1768782904423,0.21371179,92548.0,92524.0,7.6e-07]
[1768782904729,0.010811,92529.0,92524.0,7.6e-07]
[1768782905027,0.010811,92529.0,92505.0,0.17805573]
[1768782905028,0.010811,92523.0,92506.0,0.0581725]
[1768782905249,0.16425652,92523.0,92505.0,0.00016213]
[1768782905434,0.010812,92516.0,92505.0,1.3e-07]
[1768782905622,0.010812,92515.0,92487.0,0.07731661]
[1768782905923,1.02,92522.0,92495.0,0.010815]
[1768782906113,1.02,92522.0,92503.0,0.09053573]
[1768782906313,0.010809,92542.0,92483.0,0.01285361]
[1768782906314,0.08752,92543.0,92507.0,0.09053573]
[1768782906519,0.03,92543.0,92516.0,0.09053573]
[1768782906727,0.05,92553.0,92526.0,0.11008724]
[1768782907030,0.07845667,92553.0,92527.0,0.09053573]
[1768782907237,1.02,92552.0,92527.0,0.09053573]
[1768782907416,1.02,92552.0,92497.0,0.09658091]
[1768782907417,0.010808,92551.0,92530.0,0.00016213]
[1768782907617,0.00016213,92549.0,92530.0,0.00016213]
[1768782907819,0.02016213,92549.0,92530.0,0.09069786]
[1768782908519,0.00016213,92549.0,92531.0,0.10134573]
[1768782908716,0.02016213,92549.0,92531.0,0.09053573]
[1768782908930,0.02016213,92549.0,92530.0,0.00016213]
[1768782909733,0.010808,92548.0,92530.0,0.00016213]
[1768782910031,0.070808,92548.0,92511.0,0.09053573]
[1768782910336,0.01081,92538.0,92511.0,0.09053573]
[1768782910533,0.01081,92538.0,92501.0,0.09053573]
[1768782910534,0.010811,92527.0,92501.0,0.09053573]
[1768782910737,0.05,92527.0,92501.0,0.09053573]
[1768782911230,0.00016213,92523.0,92503.0,0.09053573]
[1768782911435,0.00016213,92523.0,92505.0,0.09053573]
[1768782911825,0.00016213,92523.0,92506.0,0.010813]
[1768782912026,0.00016213,92523.0,92507.0,0.09053573]
[1768782912236,0.08756,92542.0,92507.0,0.09053573]
[1768782912423,0.010808,92556.0,92530.0,0.15626948]
[1768782912628,0.030808,92556.0,92524.0,0.09053573]
[1768782913030,0.010808,92554.0,92524.0,0.09053573]
[1768782913227,0.060808,92554.0,92524.0,0.09053573]
[1768782913435,1.3e-07,92548.0,92530.0,0.09053573]
[1768782913633,1.3e-07,92548.0,92539.0,0.09053573]
[1768782916028,0.04288822,92595.0,92546.0,0.09053573]
[1768782916227,0.04288822,92595.0,92569.0,0.09053573]
[1768782916228,0.010803,92594.0,92569.0,0.09053573]
[1768782916426,0.020803,92594.0,92569.0,0.09053573]
[1768782916635,0.01,92594.0,92570.0,0.010806]
[1768782916834,0.04288822,92595.0,92570.0,0.010806]
[1768782916835,0.04288822,92595.0,92580.0,0.15626948]
[1768782917030,0.04288822,92595.0,92572.0,0.09053573]
[1768782917244,0.04288822,92595.0,92578.0,0.00016204]
[1768782917436,0.00016204,92597.0,92580.0,0.15626948]
[1768782917737,0.010802,92601.0,92578.0,0.00016204]
[1768782917942,0.15626948,92600.0,92578.0,0.00016204]
[1768782918136,0.05,92600.0,92578.0,0.00016204]
[1768782918544,0.21071179,92598.0,92578.0,4e-08]
[1768782918842,0.05,92598.0,92578.0,4e-08]
[1768782919042,0.060803,92598.0,92578.0,4e-08]
[1768782919531,0.05,92598.0,92578.0,4e-08]
[1768782919730,0.00016204,92597.0,92578.0,4e-08]
[1768782919937,0.05016204,92597.0,92578.0,4e-08]
[1768782920744,0.00016204,92597.0,92581.0,0.09053573]
[1768782921641,0.05016204,92597.0,92578.0,4e-08]
[1768782921834,0.09945527,92595.0,92562.0,0.08756]
[1768782922041,0.09945527,92594.0,92557.0,0.010807]
[1768782922340,0.010803,92592.0,92564.0,0.010807]
[1768782922541,0.010804,92586.0,92564.0,0.010807]
[1768782922738,0.010804,92590.0,92564.0,0.010807]
[1768782922938,0.060804,92590.0,92564.0,0.010807]
[1768782923136,0.00016204,92586.0,92564.0,0.010807]
[1768782923341,0.00016204,92586.0,92560.0,0.15626948]
[1768782923640,0.01016204,92586.0,92570.0,0.15626948]
[1768782923946,0.01016204,92586.0,92571.0,0.09879091]
[1768782924542,0.01016204,92586.0,92570.0,0.15626948]
[1768782924543,0.07487749,92635.0,92577.0,0.11657083]
[1768782924738,0.010802,92600.0,92578.0,0.09879091]
[1768782925049,0.040802,92600.0,92578.0,0.09879091]
[1768782925236,0.010803,92597.0,92578.0,0.09879091]
[1768782925437,0.010804,92588.0,92574.0,0.08756]
[1768782925640,0.010804,92588.0,92568.0,0.09879091]
[1768782925641,0.02,92585.0,92558.0,0.10102413]
[1768782925845,0.05,92585.0,92558.0,0.10102413]
[1768782926039,0.07,92585.0,92561.0,0.09879091]
[1768782926235,0.05,92585.0,92570.0,0.15626948]
[1768782926440,0.02,92582.0,92561.0,0.09879091]
[1768782926636,0.010805,92581.0,92561.0,0.09879091]
[1768782926851,0.02,92576.0,92562.0,0.00016204]
[1768782927045,0.010806,92571.0,92562.0,0.00016204]
[1768782927236,0.010806,92569.0,92551.0,0.09879091]
[1768782927551,0.01,92569.0,92551.0,0.09879091]
[1768782928250,0.01,92569.0,92551.0,0.10959891]
[1768782928452,0.01,92569.0,92554.0,0.010808]
[1768782928752,0.00016204,92578.0,92560.0,0.09879091]
[1768782928950,0.01,92578.0,92569.0,0.09879091]
[1768782929143,0.01,92578.0,92563.0,0.010807]
[1768782929144,0.010805,92576.0,92558.0,0.09879091]
[1768782929451,0.05,92576.0,92558.0,0.09879091]
[1768782929746,0.05,92576.0,92551.0,0.00016204]
[1768782929947,0.17914011,92601.0,92566.0,0.15626948]
[1768782930148,0.17914011,92601.0,92551.0,0.00016204]
[1768782930149,0.010803,92595.0,92572.0,0.10959691]
[1768782930348,0.01,92605.0,92576.0,0.09879091]
[1768782930652,0.01,92605.0,92567.0,0.08752]
[1768782930653,0.010803,92593.0,92569.0,0.10959691]
[1768782930842,0.06,92593.0,92567.0,0.08752]
[1768782931048,0.010804,92588.0,92567.0,0.08752]
[1768782931248,0.02,92584.0,92568.0,0.010806]
[1768782931448,0.02,92582.0,92568.0,0.01096804]
[1768782931644,0.02,92584.0,92569.0,0.09879091]
[1768782931846,0.02,92581.0,92570.0,0.010806]
[1768782932148,0.00016204,92587.0,92571.0,0.09879091]
[1768782932349,0.01016204,92587.0,92571.0,0.09879091]
[1768782932537,0.01016204,92587.0,92574.0,0.10959591]
[1768782932737,0.010803,92596.0,92574.0,0.09879091]
[1768782932944,0.010804,92591.0,92574.0,0.09879091]
[1768782933151,0.01,92591.0,92574.0,0.09879091]
[1768782934046,0.010804,92588.0,92568.0,0.00016204]
[1768782934250,0.060804,92588.0,92568.0,0.00016204]
[1768782934848,0.010804,92585.0,92568.0,0.00016204]
[1768782935049,0.05,92585.0,92568.0,0.00016204]
[1768782935238,0.05,92585.0,92568.0,0.01096804]
[1768782935440,0.14766118,92585.0,92568.0,4e-08]
[1768782935651,0.010805,92581.0,92568.0,4e-08]
[1768782935844,0.05,92581.0,92568.0,4e-08]
[1768782936244,0.05,92581.0,92568.0,0.09879095]
[1768782936649,0.05,92581.0,92568.0,4e-08]
[1768782937153,0.010805,92580.0,92568.0,4e-08]
[1768782937354,0.060805,92580.0,92568.0,4e-08]
[1768782937752,0.05,92580.0,92568.0,4e-08]
[1768782937940,0.010805,92579.0,92568.0,4e-08]
[1768782938148,0.05,92579.0,92568.0,4e-08]
[1768782938343,0.00237519,92624.0,92570.0,0.21412578]
[1768782938553,0.00237519,92624.0,92568.0,4e-08]
[1768782938554,0.08000019,92624.0,92609.0,0.09843753]
[1768782938850,0.010798,92636.0,92604.0,0.010802]
[1768782939051,0.15141468,92636.0,92601.0,0.09843753]
[1768782939250,0.15141468,92636.0,92601.0,0.10923953]
[1768782939455,0.02188882,92635.0,92601.0,0.09843753]